bitfinex-derivatives/quotes_BTCF0:USTF0_20250911
["timestamp","ask_amount","ask_price","bid_price","bid_amount"]
[1757560587461,2.64357364,114020.0,114010.0,1.33213079]
[1757560587662,2.64957364,114020.0,114010.0,1.33313079]
[1757560588367,2.64957364,114020.0,114010.0,1.24159081]
[1757560588859,0.87185449,114020.0,114010.0,1.24159081]
[1757560589262,0.86585449,114020.0,114010.0,1.13083832]
[1757560589968,0.86685449,114020.0,114010.0,1.28862498]
[1757560590864,0.86585449,114020.0,114010.0,1.28862498]
[1757560591664,0.86585449,114020.0,114010.0,1.13183832]
[1757560592660,0.00896065,114030.0,114020.0,0.01357]
[1757560592865,0.80340065,114030.0,114020.0,1.19006832]
[1757560593760,0.80340065,114030.0,114020.0,1.29979626]
[1757560594165,0.80540065,114030.0,114020.0,1.29979626]
[1757560596266,0.80340065,114030.0,114020.0,1.30179626]
[1757560596566,0.8723584,114030.0,114020.0,1.30179626]
[1757560598370,0.06908935,114030.0,114020.0,1.38947646]
[1757560598571,0.86348935,114030.0,114020.0,1.27974852]
[1757560599470,0.86348935,114030.0,114020.0,1.19206832]
[1757560603375,0.86348935,114030.0,114020.0,1.30178937]
[1757560606680,0.86348935,114030.0,114020.0,1.19206832]
[1757560606982,0.86348935,114030.0,114020.0,1.3017866]
[1757560608608,0.86348935,114030.0,114020.0,1.3894668]
[1757560610290,0.86348935,114030.0,114020.0,1.27974852]
[1757560610898,0.86348935,114030.0,114020.0,1.38949199]
[1757560611498,0.86348935,114030.0,114020.0,1.39826199]
[1757560612297,0.86348935,114030.0,114020.0,1.28851852]
[1757560614203,0.86348935,114030.0,114020.0,1.39830902]
[1757560615300,0.86348935,114030.0,114020.0,1.28851852]
[1757560617202,0.86348935,114030.0,114020.0,1.35762498]
[1757560618303,0.86348935,114030.0,114020.0,1.20083832]
[1757560621403,0.86348935,114030.0,114020.0,1.35762498]
[1757560622906,0.86348935,114030.0,114020.0,1.20083832]
[1757560623805,0.86348935,114030.0,114020.0,1.35762498]
[1757560625308,0.86348935,114030.0,114020.0,1.20083832]
[1757560627711,0.86348935,114030.0,114020.0,1.35762498]
[1757560638718,0.86320935,114030.0,114020.0,1.35762498]
[1757560639110,0.86320935,114030.0,114020.0,1.20083832]
[1757560639519,0.86320935,114030.0,114020.0,1.35789518]
[1757560642019,0.86320935,114030.0,114020.0,1.20083832]
[1757560643023,0.86320935,114030.0,114020.0,1.01809]
[1757560643225,0.86320935,114030.0,114020.0,1.20083832]
[1757560643827,0.06908935,114030.0,114020.0,1.20083832]
[1757560644025,0.66832935,114030.0,114020.0,1.20083832]
[1757560644428,0.66832935,114030.0,114020.0,1.35789518]
[1757560644728,0.66832935,114030.0,114020.0,1.44557538]
[1757560645228,0.66832935,114030.0,114020.0,1.53694954]
[1757560645728,0.66832935,114030.0,114020.0,1.44557538]
[1757560646829,0.66832935,114030.0,114020.0,1.28851852]
[1757560647730,0.66832935,114030.0,114020.0,1.1057702]
[1757560647930,0.66832935,114030.0,114020.0,1.28851852]
[1757560648632,0.66832935,114030.0,114020.0,1.44552053]
[1757560650230,0.66832935,114030.0,114020.0,1.28851852]
[1757560650430,0.66832935,114030.0,114020.0,1.51685174]
[1757560651931,0.66832935,114030.0,114020.0,1.67384613]
[1757560652830,0.66832935,114030.0,114020.0,1.51685174]
[1757560653434,0.66832935,114030.0,114020.0,1.12798416]
[1757560653634,0.66832935,114030.0,114020.0,1.40203852]
[1757560654936,0.66832935,114030.0,114020.0,1.44913602]
[1757560657146,0.66832935,114030.0,114020.0,1.5861632]
[1757560660446,0.66832935,114030.0,114020.0,1.44913602]
[1757560660649,0.06908935,114030.0,114020.0,1.42917154]
[1757560664950,0.06908935,114030.0,114020.0,1.51685174]
[1757560666950,0.06908935,114030.0,114020.0,1.62678117]
[1757560670150,0.0001316,114030.0,114020.0,1.62678117]
[1757560670451,0.0001316,114030.0,114020.0,1.51685174]
[1757560670646,0.0001316,114030.0,114020.0,1.76685174]
[1757560671251,0.0001316,114030.0,114020.0,1.92390462]
[1757560672051,0.0001316,114030.0,114020.0,1.76685174]
[1757560672754,0.0001316,114030.0,114020.0,1.92390462]
[1757560677762,0.0001316,114030.0,114020.0,1.76685174]
[1757560678860,0.0001316,114030.0,114020.0,1.92381428]
[1757560679656,0.0001316,114030.0,114020.0,1.76685174]
[1757560680164,0.0001316,114030.0,114020.0,1.97200737]
[1757560682566,0.0001316,114030.0,114020.0,1.76685174]
[1757560683863,0.0001316,114030.0,114020.0,1.97200737]
[1757560684970,0.0001316,114030.0,114020.0,1.76685174]
[1757560686470,0.0001316,114030.0,114020.0,1.92379253]
[1757560690677,0.0001316,114030.0,114020.0,1.76685174]
[1757560692182,0.0001316,114030.0,114020.0,1.97200737]
[1757560693480,0.0001316,114030.0,114020.0,1.76685174]
[1757560695784,0.0001316,114030.0,114020.0,1.97200737]
[1757560699786,0.0001316,114030.0,114020.0,2.12909006]
[1757560700884,0.0001316,114030.0,114020.0,1.92393443]
[1757560702076,0.0001316,114030.0,114020.0,1.76685174]
[1757560704480,0.0001316,114030.0,114020.0,1.97200737]
[1757560707989,0.0001316,114030.0,114020.0,1.76685174]
[1757560710392,0.0001316,114030.0,114020.0,1.53845298]
[1757560711593,0.0001316,114030.0,114020.0,1.74360861]
[1757560712392,0.0001316,114030.0,114020.0,1.83495]
[1757560712588,0.0001316,114030.0,114020.0,1.74360861]
[1757560715595,0.0001316,114030.0,114020.0,1.83495]
[1757560717693,0.07027789,114050.0,114040.0,0.1224954]
[1757560717893,0.02032994,114060.0,114050.0,0.01291]
[1757560718202,0.81408994,114060.0,114050.0,0.90563]
[1757560718703,0.82286776,114060.0,114050.0,0.90563]
[1757560719095,0.82586776,114060.0,114050.0,0.91439]
[1757560719798,0.8974577,114060.0,114050.0,0.91439]
[1757560721092,0.8984177,114060.0,114050.0,1.09707278]
[1757560721496,0.8984177,114060.0,114050.0,1.00573139]
[1757560722106,0.3546977,114060.0,114050.0,1.00573139]
[1757560722295,1.1484177,114060.0,114050.0,1.00573139]
[1757560722599,0.3546977,114060.0,114050.0,1.00573139]
[1757560722800,1.1484177,114060.0,114050.0,1.00573139]
[1757560724107,1.1483777,114060.0,114050.0,1.1155384]
[1757560725000,1.1483777,114060.0,114050.0,1.00573139]
[1757560725194,0.3546977,114060.0,114050.0,1.00573139]
[1757560725389,1.1483777,114060.0,114050.0,1.00573139]
[1757560727102,1.13959988,114060.0,114050.0,1.00573139]
[1757560727300,0.07558994,114060.0,114050.0,1.18473048]
[1757560727501,0.79768,114060.0,114050.0,1.34182445]
[1757560728198,0.004,114060.0,114050.0,1.34182445]
[1757560729202,0.002,114060.0,114050.0,1.34182445]
[1757560729804,0.001,114060.0,114050.0,1.34182445]
[1757560732403,0.001,114060.0,114050.0,1.18473048]
[1757560733202,0.001,114060.0,114050.0,1.34182445]
[1757560734707,0.001,114060.0,114050.0,1.18473048]
[1757560735306,0.001,114060.0,114050.0,1.34127614]
[1757560737009,0.001,114060.0,114050.0,1.18473048]
[1757560737204,0.001,114060.0,114050.0,1.34125095]
[1757560741311,0.001,114060.0,114050.0,1.18473048]
[1757560741503,0.001,114060.0,114050.0,1.3412638]
[1757560742309,0.001,114060.0,114050.0,1.18473048]
[1757560743812,0.001,114060.0,114050.0,1.3412638]
[1757560745015,0.001,114060.0,114050.0,1.07092332]
[1757560745314,0.001,114060.0,114050.0,1.16226471]
[1757560746118,0.001,114060.0,114050.0,1.24992241]
[1757560746616,0.001,114060.0,114050.0,1.3412638]
[1757560746818,0.001,114060.0,114050.0,1.24992241]
[1757560747820,0.001,114060.0,114050.0,1.3412638]
[1757560748622,0.001,114060.0,114050.0,1.18473048]
[1757560749519,0.001,114060.0,114050.0,1.34142944]
[1757560751727,0.001,114060.0,114050.0,1.18473048]
[1757560752026,0.001,114060.0,114050.0,1.00573139]
[1757560753026,0.001,114060.0,114050.0,1.16247198]
[1757560753923,0.70314139,114060.0,114050.0,0.71033059]
[1757560754616,0.70314139,114060.0,114050.0,0.55359]
[1757560755418,0.79448278,114060.0,114050.0,0.02167]
[1757560755621,0.70314139,114060.0,114050.0,0.13147548]
[1757560756326,0.79448278,114060.0,114050.0,0.11856548]
[1757560756528,0.70314139,114060.0,114050.0,0.11856548]
[1757560760031,0.70314139,114060.0,114050.0,0.00876]
[1757560760231,0.70314139,114060.0,114050.0,0.02231]
[1757560761833,0.70314139,114060.0,114050.0,0.13211548]
[1757560762430,0.70314139,114060.0,114050.0,0.15407548]
[1757560764137,0.70314139,114060.0,114050.0,0.13211548]
[1757560765030,0.70314139,114060.0,114050.0,0.02231]
[1757560767837,0.70314139,114060.0,114050.0,0.13211548]
[1757560768540,1.49710139,114060.0,114050.0,0.15531548]
[1757560768739,1.49710139,114060.0,114050.0,0.24665687]
[1757560768942,1.49706139,114060.0,114050.0,0.24665687]
[1757560770028,1.49706139,114060.0,114050.0,0.35665687]
[1757560771239,1.49706139,114060.0,114050.0,0.38665687]
[1757560771435,1.49706139,114060.0,114050.0,0.24665687]
[1757560771637,1.49706139,114060.0,114050.0,0.36665687]
[1757560772340,1.54272233,114060.0,114050.0,0.41231781]
[1757560772741,1.54272233,114060.0,114050.0,0.15531548]
[1757560772941,1.54272233,114060.0,114050.0,0.29231781]
[1757560774637,1.40572,114060.0,114050.0,0.29231781]
[1757560774836,1.54272233,114060.0,114050.0,0.29231781]
[1757560775343,0.74880233,114060.0,114050.0,0.29231781]
[1757560775536,1.54288233,114060.0,114050.0,0.29231781]
[1757560776748,1.54288233,114060.0,114050.0,0.18251233]
[1757560778743,1.54288233,114060.0,114050.0,0.29231781]
[1757560779249,1.29288233,114060.0,114050.0,0.29231781]
[1757560780948,1.15588,114060.0,114050.0,0.29231781]
[1757560781150,1.29288233,114060.0,114050.0,0.29231781]
[1757560781356,1.29288233,114060.0,114050.0,0.18251233]
[1757560782148,1.29288233,114060.0,114050.0,0.29251233]
[1757560782349,1.15588,114060.0,114050.0,0.29251233]
[1757560782643,1.29288233,114060.0,114050.0,0.29251233]
[1757560783337,0.3618,114060.0,114050.0,0.29251233]
[1757560783543,0.79484,114060.0,114050.0,1.45797236]
[1757560783742,0.79484,114060.0,114050.0,1.56798193]
[1757560784145,0.79484,114060.0,114050.0,1.45797236]
[1757560785644,0.79484,114060.0,114050.0,1.32097003]
[1757560786050,0.93184233,114060.0,114050.0,0.62251233]
[1757560786445,0.93184233,114060.0,114050.0,0.48551]
[1757560786640,0.93184233,114060.0,114050.0,0.62251233]
[1757560786845,0.93184233,114060.0,114050.0,0.73248551]
[1757560787643,0.79484,114060.0,114050.0,0.73248551]
[1757560788852,0.79484,114060.0,114050.0,1.09328551]
[1757560789048,0.79484,114060.0,114050.0,0.98331233]
[1757560791852,0.79484,114060.0,114050.0,0.84631]
[1757560792052,0.79484,114060.0,114050.0,0.98331233]
[1757560795555,0.79484,114060.0,114050.0,0.84631]
[1757560795754,0.79484,114060.0,114050.0,0.98331233]
[1757560796358,0.79484,114060.0,114050.0,1.14005292]
[1757560801465,0.79484,114060.0,114050.0,1.00305059]
[1757560801760,0.79484,114060.0,114050.0,1.14005292]
[1757560803357,0.93184233,114060.0,114050.0,1.14005292]
[1757560803661,0.79484,114060.0,114050.0,0.98331233]
[1757560803962,0.93184233,114060.0,114050.0,0.98331233]
[1757560804461,0.93184233,114060.0,114050.0,1.14005292]
[1757560805962,0.93184233,114060.0,114050.0,0.98331233]
[1757560807066,0.93184233,114060.0,114050.0,1.14005292]
[1757560807663,0.93184233,114060.0,114050.0,1.00305059]
[1757560807861,0.93184233,114060.0,114050.0,1.14005292]
[1757560808662,0.93184233,114060.0,114050.0,1.00305059]
[1757560808866,0.93184233,114060.0,114050.0,1.14005292]
[1757560812769,0.79484,114060.0,114050.0,1.14005292]
[1757560812961,0.93184233,114060.0,114050.0,1.14005292]
[1757560813362,0.93184233,114060.0,114050.0,0.98331233]
[1757560813671,0.001,114060.0,114050.0,0.98331233]
[1757560813969,0.79468,114060.0,114050.0,0.98331233]
[1757560814170,0.79464,114060.0,114050.0,1.07096993]
[1757560814964,0.79464,114060.0,114050.0,1.22771052]
[1757560816566,0.79464,114060.0,114050.0,1.14005292]
[1757560817974,0.001,114060.0,114050.0,1.14005292]
[1757560818273,0.79464,114060.0,114050.0,1.14005292]
[1757560822180,0.79464,114060.0,114050.0,0.98331233]
[1757560824080,0.79464,114060.0,114050.0,0.84631]
[1757560824280,0.79464,114060.0,114050.0,0.98331233]
[1757560824680,0.001,114060.0,114050.0,1.07096983]
[1757560824881,0.79464,114060.0,114050.0,1.07096983]
[1757560826278,0.79464,114060.0,114050.0,1.22771042]
[1757560827083,0.79464,114060.0,114050.0,1.18104211]
[1757560829287,0.79464,114060.0,114050.0,1.07096983]
[1757560831088,0.79464,114060.0,114050.0,1.22771042]
[1757560831486,0.79464,114060.0,114050.0,1.36471275]
[1757560831787,0.79464,114060.0,114050.0,1.22771042]
[1757560832291,0.79464,114060.0,114050.0,1.18201891]
[1757560834492,0.001,114060.0,114050.0,1.18201891]
[1757560834683,0.001,114060.0,114050.0,1.52332973]
[1757560834881,0.66252,114060.0,114050.0,1.52332973]
[1757560835086,0.66252,114060.0,114050.0,1.37535909]
[1757560835588,0.66252,114060.0,114050.0,1.73615909]
[1757560835895,0.66252,114060.0,114050.0,1.94131472]
[1757560836399,0.8144112,114070.0,114060.0,0.10043]
[1757560836592,0.8144112,114070.0,114060.0,1.44287727]
[1757560837392,0.8144112,114070.0,114060.0,1.28580164]
[1757560837900,0.8144112,114070.0,114060.0,1.29456164]
[1757560838590,0.8144112,114070.0,114060.0,1.45150675]
[1757560839089,0.8154112,114070.0,114060.0,1.45150675]
[1757560840200,0.8154112,114070.0,114060.0,1.29456164]
[1757560843201,0.8154112,114070.0,114060.0,1.4513715]
[1757560846408,0.8154112,114070.0,114060.0,1.29456164]
[1757560847606,0.0217312,114070.0,114060.0,1.29456164]
[1757560847907,0.02064833,114090.0,114070.0,0.03473]
[1757560848100,0.75449,114110.0,114100.0,0.1223492]
[1757560848400,0.7312,114110.0,114100.0,1.17577084]
[1757560848598,0.74017771,114110.0,114100.0,1.17577084]
[1757560848796,0.7312,114110.0,114100.0,1.33252075]
[1757560849109,0.7312,114110.0,114100.0,1.69132075]
[1757560849307,0.7312,114110.0,114100.0,1.68832075]
[1757560850506,0.7312,114110.0,114100.0,1.53157084]
[1757560851009,0.7312,114110.0,114100.0,1.53357084]
[1757560851208,0.7312,114110.0,114100.0,1.69032075]
[1757560851904,0.7312,114110.0,114100.0,1.53357084]
[1757560852606,0.7312,114110.0,114100.0,1.64289007]
[1757560853307,0.7312,114110.0,114100.0,1.65165007]
[1757560854211,0.7312,114110.0,114100.0,1.54233084]
[1757560854608,0.86233096,114120.0,114110.0,0.1235715]
[1757560854812,0.86233096,114120.0,114110.0,1.09568232]
[1757560855210,0.79368,114120.0,114110.0,1.18699314]
[1757560855812,0.79368,114120.0,114110.0,1.09568232]
[1757560856112,0.79368,114120.0,114110.0,1.18699314]
[1757560856313,0.79368,114120.0,114110.0,1.18899314]
[1757560856714,0.79368,114120.0,114110.0,1.10138164]
[1757560857012,0.79368,114120.0,114110.0,1.01007082]
[1757560860311,0.79368,114120.0,114110.0,1.10138164]
[1757560860612,0.07923337,114130.0,114110.0,1.18899314]
[1757560860812,0.02255,114130.0,114120.0,0.57938164]
[1757560861118,0.79332,114130.0,114120.0,1.09938164]
[1757560861519,0.86450865,114130.0,114120.0,1.00807082]
[1757560861922,0.86550865,114130.0,114120.0,1.00807082]
[1757560862719,0.86450865,114130.0,114120.0,1.00807082]
[1757560862920,0.86550865,114130.0,114120.0,1.00807082]
[1757560863217,0.86550865,114130.0,114120.0,1.09938164]
[1757560863413,0.86550865,114130.0,114120.0,1.18698554]
[1757560863620,0.86546865,114130.0,114120.0,1.18698554]
[1757560864318,0.86546865,114130.0,114120.0,1.09938164]
[1757560865828,0.86546865,114130.0,114120.0,1.00807082]
[1757560866728,0.97932947,114130.0,114120.0,0.55596]
[1757560866925,0.97932947,114130.0,114120.0,0.64727082]
[1757560867132,0.88801865,114130.0,114120.0,0.64727082]
[1757560867430,0.97932947,114130.0,114120.0,0.64727082]
[1757560868332,0.97932947,114130.0,114120.0,0.55596]
[1757560868630,0.97932947,114130.0,114120.0,0.64727082]
[1757560869129,0.88801865,114130.0,114120.0,0.64727082]
[1757560871427,0.88809865,114130.0,114120.0,1.09938164]
[1757560871628,0.88809865,114130.0,114120.0,0.91676]
[1757560871829,0.88813865,114130.0,114120.0,1.09938164]
[1757560872434,0.88813865,114130.0,114120.0,0.91676]
[1757560872736,0.81695,114130.0,114120.0,1.09938164]
[1757560873129,0.02355,114130.0,114120.0,1.09938164]
[1757560873328,0.81687,114130.0,114120.0,1.09938164]
[1757560874641,0.81687,114130.0,114120.0,1.10814164]
[1757560876842,0.81687,114130.0,114120.0,1.01683082]
[1757560877136,0.81687,114130.0,114120.0,1.10814164]
[1757560877342,0.81687,114130.0,114120.0,1.01683082]
[1757560878442,0.81687,114130.0,114120.0,1.12615005]
[1757560878744,0.81687,114130.0,114120.0,1.03483923]
[1757560878942,0.81687,114130.0,114120.0,1.12615005]
[1757560879542,0.81687,114130.0,114120.0,1.01683082]
[1757560879744,0.02355,114130.0,114120.0,1.01683082]
[1757560879942,0.81703,114130.0,114120.0,1.01683082]
[1757560880143,0.81703,114130.0,114120.0,1.10814164]
[1757560880446,0.001,114130.0,114120.0,1.19574584]
[1757560880647,0.7944,114130.0,114120.0,1.19574584]
[1757560881744,0.7944,114130.0,114120.0,1.10814164]
[1757560882140,0.7944,114130.0,114120.0,1.01683082]
[1757560882643,0.7944,114130.0,114120.0,1.10443502]
[1757560882840,0.7944,114130.0,114120.0,1.21375425]
[1757560883344,0.7944,114130.0,114120.0,1.10443502]
[1757560884133,0.7944,114130.0,114120.0,1.19574584]
[1757560884443,0.7944,114130.0,114120.0,1.30506507]
[1757560885746,0.001,114130.0,114120.0,1.19574584]
[1757560886143,0.7942,114130.0,114120.0,1.44574584]
[1757560886345,0.7942,114130.0,114120.0,1.53705666]
[1757560886745,0.001,114130.0,114120.0,1.44574584]
[1757560887149,0.001,114130.0,114120.0,1.53705666]
[1757560887350,0.79428,114130.0,114120.0,1.44574584]
[1757560887650,0.79328,114130.0,114120.0,1.60249575]
[1757560887847,0.02028618,114150.0,114130.0,0.1228241]
[1757560888153,0.02028618,114150.0,114140.0,0.57865164]
[1757560888450,0.66196618,114150.0,114140.0,1.10865164]
[1757560888953,0.73338757,114150.0,114140.0,1.10865164]
[1757560889146,0.75538757,114150.0,114140.0,0.92603]
[1757560889341,0.76619066,114150.0,114140.0,1.01734082]
[1757560889546,0.76619066,114150.0,114140.0,0.65654082]
[1757560890142,0.75738757,114150.0,114140.0,1.01734082]
[1757560890950,0.75638757,114150.0,114140.0,1.01734082]
[1757560891248,0.75738757,114150.0,114140.0,0.92603]
[1757560891448,0.75638757,114150.0,114140.0,0.92603]
[1757560891647,0.75638757,114150.0,114140.0,0.66530082]
[1757560891841,0.84769839,114150.0,114140.0,0.57399]
[1757560892042,1.21049839,114150.0,114140.0,0.66530082]
[1757560892240,1.21049839,114150.0,114140.0,0.57399]
[1757560892445,1.26492223,114150.0,114140.0,0.71077933]
[1757560892651,1.26292223,114150.0,114140.0,0.71077933]
[1757560892846,1.26392223,114150.0,114140.0,0.71077933]
[1757560894748,1.1271329,114150.0,114140.0,0.71077933]
[1757560894954,1.26392223,114150.0,114140.0,0.84756866]
[1757560895954,1.26392223,114150.0,114140.0,0.95736318]
[1757560896550,1.1271329,114150.0,114140.0,0.95736318]
[1757560896752,1.26392223,114150.0,114140.0,0.84756866]
[1757560899654,1.1271329,114150.0,114140.0,0.84756866]
[1757560899951,1.26392223,114150.0,114140.0,0.84756866]
[1757560901246,1.26392223,114150.0,114140.0,0.95736318]
[1757560902157,1.1271329,114150.0,114140.0,0.95736318]
[1757560902455,1.26392223,114150.0,114140.0,0.84756866]
[1757560902654,1.26392223,114150.0,114140.0,0.95729696]
[1757560903454,1.1271329,114150.0,114140.0,0.95729696]
[1757560903655,1.26392223,114150.0,114140.0,0.95729696]
[1757560904159,1.10684672,114150.0,114140.0,0.95729696]
[1757560906361,1.24363605,114150.0,114140.0,0.6837183]
[1757560906550,1.49363605,114150.0,114140.0,0.57399]
[1757560906858,1.63042538,114150.0,114140.0,0.1185144]
[1757560907054,1.49363605,114150.0,114140.0,0.1185144]
[1757560908755,1.49363605,114150.0,114140.0,0.25530373]
[1757560909259,1.49363605,114150.0,114140.0,0.27675373]
[1757560909763,1.49363605,114150.0,114140.0,0.16699933]
[1757560909956,1.49363605,114150.0,114140.0,0.29053373]
[1757560910258,0.71516672,114150.0,114140.0,0.29053373]
[1757560910459,0.85195605,114150.0,114140.0,0.29053373]
[1757560910663,1.51172672,114150.0,114140.0,0.42732306]
[1757560910858,1.51172672,114150.0,114140.0,0.1537444]
[1757560910859,0.85195605,114150.0,114140.0,0.1537444]
[1757560911060,1.64855605,114150.0,114140.0,0.29053373]
[1757560911363,1.51176672,114150.0,114140.0,0.29053373]
[1757560911570,1.64855605,114150.0,114140.0,0.42732306]
[1757560912061,1.64851605,114150.0,114140.0,0.42732306]
[1757560912251,1.26184672,114150.0,114140.0,0.55732306]
[1757560912453,1.26184672,114150.0,114140.0,0.2837444]
[1757560912763,1.39863605,114150.0,114140.0,0.1537444]
[1757560912967,1.26184672,114150.0,114140.0,0.29053373]
[1757560913268,1.39863605,114150.0,114140.0,0.29053373]
[1757560913562,1.26184672,114150.0,114140.0,0.29053373]
[1757560913864,1.39863605,114150.0,114140.0,0.1537444]
[1757560914065,1.39863605,114150.0,114140.0,0.18077933]
[1757560914459,1.39863605,114150.0,114140.0,0.04399]
[1757560914662,1.39863605,114150.0,114140.0,0.18077933]
[1757560914862,1.39863605,114150.0,114140.0,0.29053373]
[1757560915567,1.39863605,114150.0,114140.0,0.18077933]
[1757560915766,1.26184672,114150.0,114140.0,0.18077933]
[1757560916070,1.39863605,114150.0,114140.0,0.18077933]
[1757560918875,1.26184672,114150.0,114140.0,0.18077933]
[1757560919173,1.39863605,114150.0,114140.0,0.18077933]
[1757560919867,1.26184672,114150.0,114140.0,0.18077933]
[1757560920066,1.39863605,114150.0,114140.0,0.04399]
[1757560920267,1.39863605,114150.0,114140.0,0.18077933]
[1757560920569,1.26184672,114150.0,114140.0,0.18077933]
[1757560920767,1.39863605,114150.0,114140.0,0.18077933]
[1757560921061,1.39863605,114150.0,114140.0,0.14554933]
[1757560921269,1.39863605,114150.0,114140.0,0.16800933]
[1757560921871,1.39863605,114150.0,114140.0,0.03122]
[1757560922072,1.26184672,114150.0,114140.0,0.16800933]
[1757560922273,1.39863605,114150.0,114140.0,0.16800933]
[1757560923065,1.39863605,114150.0,114140.0,0.18096933]
[1757560923373,1.39939605,114150.0,114140.0,0.31775866]
[1757560924272,1.26252672,114150.0,114140.0,0.45775866]
[1757560924462,1.26252672,114150.0,114140.0,0.31775866]
[1757560926273,0.024,114150.0,114140.0,1.52855866]
[1757560926471,0.82208,114150.0,114140.0,1.52855866]
[1757560927574,0.002,114150.0,114140.0,1.52855866]
[1757560927774,0.80008,114150.0,114140.0,1.68530857]
[1757560931574,0.79984,114150.0,114140.0,1.9096853]
[1757560931773,0.79984,114150.0,114140.0,1.75293539]
[1757560935779,0.79984,114150.0,114140.0,1.77286972]
[1757560936674,0.79984,114150.0,114140.0,1.90965905]
[1757560937379,0.79984,114150.0,114140.0,1.86260878]
[1757560937578,0.002,114150.0,114140.0,1.86260878]
[1757560937774,0.002,114150.0,114140.0,1.75293539]
[1757560938176,0.7978,114160.0,114150.0,0.03542]
[1757560938378,0.7978,114160.0,114150.0,1.16979866]
[1757560939371,0.7978,114160.0,114150.0,1.26613836]
[1757560939571,0.7988,114160.0,114150.0,1.26613836]
[1757560939877,0.7988,114160.0,114150.0,1.37581175]
[1757560940075,0.7988,114160.0,114150.0,1.10223309]
[1757560940276,0.7988,114160.0,114150.0,1.37581175]
[1757560940579,0.7998,114160.0,114150.0,1.26613836]
[1757560940776,0.7998,114160.0,114150.0,1.65292769]
[1757560940777,0.002,114160.0,114150.0,1.65292769]
[1757560942174,0.001,114160.0,114150.0,1.51613836]
[1757560942482,0.02242,114170.0,114160.0,0.1226317]
[1757560942683,0.02242,114170.0,114160.0,1.30701036]
[1757560943878,0.02242,114170.0,114160.0,1.41657488]
[1757560944075,2.58986,114180.0,114170.0,0.03506]
[1757560944382,2.58986,114180.0,114170.0,1.04943866]
[1757560944779,2.58986,114180.0,114170.0,1.15900318]
[1757560945173,2.58986,114180.0,114170.0,1.04943866]
[1757560946380,2.58986,114180.0,114170.0,1.15900318]
[1757560948389,2.58986,114180.0,114170.0,1.04943866]
[1757560948589,2.58986,114180.0,114170.0,0.55184933]
[1757560950885,2.58986,114180.0,114170.0,0.66141385]
[1757560952292,2.58986,114180.0,114170.0,0.67016385]
[1757560952691,2.58986,114180.0,114170.0,0.53337452]
[1757560952993,3.48303866,114180.0,114170.0,0.49831452]
[1757560953202,3.34624933,114180.0,114170.0,0.14553933]
[1757560953591,3.34624933,114180.0,114170.0,0.27661385]
[1757560954394,3.20946,114180.0,114170.0,0.12140804]
[1757560954691,3.20946,114180.0,114170.0,0.09989804]
[1757560955792,3.20946,114180.0,114170.0,0.12140804]
[1757560955998,3.20946,114180.0,114170.0,0.23097076]
[1757560957894,3.20946,114180.0,114170.0,0.13982272]
[1757560958091,3.20946,114180.0,114170.0,0.23097076]
[1757560959391,2.95946,114180.0,114170.0,0.23097076]
[1757560959787,2.95946,114180.0,114170.0,0.12140804]
[1757560963495,2.95946,114180.0,114170.0,0.23107789]
[1757560965698,1.1927,114180.0,114170.0,0.23107789]
[1757560966391,1.1927,114180.0,114170.0,0.12140804]
[1757560967300,1.1839,114180.0,114170.0,0.03026]
[1757560967597,1.1839,114180.0,114170.0,0.12140804]
[1757560968201,1.1839,114180.0,114170.0,0.09989804]
[1757560968595,1.1839,114180.0,114170.0,0.12140804]
[1757560970591,0.38322,114180.0,114170.0,0.13495804]
[1757560970796,1.18262,114180.0,114170.0,0.24495804]
[1757560970997,1.18262,114180.0,114170.0,0.13495804]
[1757560971199,1.18262,114180.0,114170.0,0.04381]
[1757560971401,1.18262,114180.0,114170.0,0.13495804]
[1757560971603,0.82182,114180.0,114170.0,0.13495804]
[1757560971802,0.82182,114180.0,114170.0,0.04381]
[1757560971992,0.82182,114180.0,114170.0,0.13495804]
[1757560977605,0.82182,114180.0,114170.0,0.04381]
[1757560977799,0.82182,114180.0,114170.0,0.13495804]
[1757560983708,0.82182,114180.0,114170.0,0.04381]
[1757560984007,0.82182,114180.0,114170.0,0.13495804]
[1757560986710,0.02242,114180.0,114170.0,0.13495804]
[1757560986909,0.82094,114180.0,114170.0,0.24489765]
[1757560987612,0.82082,114180.0,114170.0,0.24489765]
[1757560988107,0.02242,114180.0,114170.0,0.24489765]
[1757560988307,0.02242,114180.0,114170.0,0.60569765]
[1757560988513,0.82082,114180.0,114170.0,0.60569765]
[1757560988712,0.82082,114180.0,114170.0,0.62575804]
[1757560988914,0.82082,114180.0,114170.0,0.65230296]
[1757560989210,0.82082,114180.0,114170.0,0.77230296]
[1757560989418,0.82094,114180.0,114170.0,0.77230296]
[1757560991117,0.82094,114180.0,114170.0,0.65230296]
[1757560991325,0.82094,114180.0,114170.0,0.72574279]
[1757560991821,0.82094,114180.0,114170.0,0.60574279]
[1757560992823,0.82094,114180.0,114170.0,0.49575804]
[1757560993120,0.82094,114180.0,114170.0,0.40461]
[1757560993322,0.82094,114180.0,114170.0,0.49575804]
[1757560995117,0.82094,114180.0,114170.0,0.60574279]
[1757560996123,0.82094,114180.0,114170.0,0.73574279]
[1757560996324,0.02242,114180.0,114170.0,1.03445553]
[1757560996521,0.02242,114180.0,114170.0,1.45447078]
[1757560996725,0.79816,114180.0,114170.0,1.2721747]
[1757560996917,0.79816,114180.0,114170.0,1.45447078]
[1757560998623,0.79816,114180.0,114170.0,1.6110157]
[1757560999423,2.12692,114200.0,114190.0,0.0875494]
[1757560999424,4e-05,114200.0,114190.0,0.0875494]
[1757560999621,0.7994,114200.0,114190.0,1.25617548]
[1757560999822,4e-05,114200.0,114190.0,1.57558279]
[1757561000021,0.40304782,114230.0,114220.0,0.03553]
[1757561000228,1.21635586,114230.0,114220.0,0.03553]
[1757561000431,1.19505291,114230.0,114220.0,0.11009522]
[1757561000726,1.28920095,114230.0,114220.0,0.10709522]
[1757561000922,1.19805291,114230.0,114220.0,0.10709522]
[1757561001125,1.20698937,114230.0,114220.0,0.10709522]
[1757561001325,1.29813741,114230.0,114220.0,0.10709522]
[1757561001518,1.30013741,114230.0,114220.0,0.00875]
[1757561002622,1.45898937,114230.0,114220.0,0.08716522]
[1757561002822,1.55013741,114230.0,114220.0,0.08716522]
[1757561003031,1.55213741,114230.0,114220.0,0.00875]
[1757561008633,1.55213741,114230.0,114220.0,0.08716522]
[1757561008932,1.55213741,114230.0,114220.0,0.00875]
[1757561015136,1.46098937,114230.0,114220.0,0.00875]
[1757561015340,1.55213741,114230.0,114220.0,0.00875]
[1757561016032,1.64328545,114230.0,114220.0,0.00875]
[1757561016228,1.55213741,114230.0,114220.0,0.00875]